[Event "WTCC-65 2018"]
[Site "Radebeul"]
[Date "2018.07.14"]
[Round "8"]
[White "Illi, Hans-Joerg"]
[Black "Gneiss, Karl"]
[Result "1/2-1/2"]
[ECO "A01"]
[WhiteElo "2063"]
[BlackElo "2090"]
[Annotator "NA"]
[PlyCount "88"]
[EventDate "2018.07.07"]
[EventType "team-tourn"]
[EventCountry "GER"]
[SourceTitle "playchess.com"]
[Source "ChessBase"]
[SourceQuality "1"]
[TimeControl "40/5400+30:1800+30"]

1. b3 {[%emt 0:00:00]} e5 {[%emt 0:00:00]} 2. Bb2 {[%emt 0:00:35]} Nc6 {[%emt 0:00:00]} 3. Nf3 {[%emt 0:00:56]} d6 {[%emt 0:02:44]} 4. e3 {[%emt 0:07:43]} Bg4 {[%emt 0:02:00]} 5. Be2 {[%emt 0:00:42]} Nf6 {[%emt 0:03:27]} 6. O-O {[%emt 0:06:06]} Qd7 {[%emt 0:02:07]} 7. Ne1 {[%emt 0:06:58]} h5 {[%emt 0:01:50]} 8. f3 {[%emt 0:02:04]} Be6 {[%emt 0:00:45]} 9. d4 {[%emt 0:00:49]} exd4 {[%emt 0:05:50]} 10. exd4 {[%emt 0:05:40]} d5 {[%emt 0:02:33]} 11. Nd3 {[%emt 0:04:23]} O-O-O {[%emt 0:08:12]} 12. c3 {[%emt 0:13:14]} h4 {[%emt 0:00:59]} 13. Ba3 {[%emt 0:02:28]} Rh6 {[%emt 0:07:24]} 14. Bxf8 {[%emt 0:04:49]} Rxf8 {[%emt 0:00:01]} 15. b4 {[%emt 0:01:21]} Qd6 {[%emt 0:02:44]} 16. b5 {[%emt 0:04:10]} Ne7 {[%emt 0:01:24]} 17. Qa4 {[%emt 0:04:31]} Kb8 {[%emt 0:00:38]} 18. Qb4 {[%emt 0:06:26]} Ne8 {[%emt 0:12:37]} 19. Nd2 {[%emt 0:05:38]} Nf5 {[%emt 0:05:56]} 20. Qxd6 {[%emt 0:03:11]} Nexd6 {[%emt 0:00:36]} 21. Nf4 {[%emt 0:01:00]} Ne3 {[%emt 0:06:07]} 22. Rfc1 {[%emt 0:00:38]} Bd7 {[%emt 0:01:35]} 23. Kf2 {[%emt 0:02:10]} Re8 {[%emt 0:00:55]} 24. Nf1 {[%emt 0:05:09]} Nxf1 {[%emt 0:06:10]} 25. Bxf1 {[%emt 0:00:27]} Bxb5 {[%emt 0:03:08]} 26. Bxb5 {[%emt 0:02:00]} Nxb5 {[%emt 0:00:06]} 27. Nxd5 {[%emt 0:00:55]} Rd6 {[%emt 0:04:04]} 28. Nf4 {[%emt 0:01:28]} c5 {[%emt 0:04:04]} 29. a4 {[%emt 0:03:49]} Nc7 {[%emt 0:01:35]} 30. Rd1 {[%emt 0:00:30]} Red8 {[%emt 0:03:58]} 31. Rd3 {[%emt 0:01:55]} cxd4 {[%emt 0:03:06]} 32. Rad1 {[%emt 0:00:23]} g5 {[%emt 0:03:38]} 33. Ne2 {[%emt 0:00:25]} Ne6 {[%emt 0:00:56]} 34. cxd4 {[%emt 0:00:32]} Rd5 {[%emt 0:01:36]} 35. g3 {[%emt 0:00:56]} hxg3+ {[%emt 0:00:27]} 36. hxg3 {[%emt 0:00:08]} f5 {[%emt 0:01:07]} 37. Ke3 {[%emt 0:00:33]} Ra5 {[%emt 0:01:18]} 38. Nc3 {[%emt 0:00:18]} Re8 {[%emt 0:00:50]} 39. Kf2 {[%emt 0:00:53]} f4 {[%emt 0:01:26]} 40. d5 {[%emt 0:00:50]} Nc5 {[%emt 0:00:40]} 41. Rd4 {[%emt 0:30:27]} Re3 {[%emt 0:30:41]} 42. Ne4 {[%emt 0:00:00]} g4 {[%emt 0:00:00]} 43. Ng5 {[%emt 0:00:00]} gxf3 {[%emt 0:00:00]} 44. gxf4 {[%emt 0:00:00]} Re8 {[%emt 0:00:00]} 1/2-1/2

[Event "WTCC-65 2018"]
[Site "Radebeul"]
[Date "2018.07.15"]
[Round "9"]
[White "Rashkovsky, Nukhim N"]
[Black "Seret, Jean-Luc"]
[Result "1-0"]
[ECO "A41"]
[WhiteElo "2483"]
[BlackElo "2353"]
[Annotator "ChessBase"]
[PlyCount "79"]
[EventDate "2018.07.07"]
[EventType "team-tourn"]
[EventCountry "GER"]
[SourceTitle "playchess.com"]
[Source "ChessBase"]
[SourceQuality "1"]
[TimeControl "40/5400+30:1800+30"]

1. d4 {[%emt 0:00:00]} d6 {[%emt 0:00:00]} 2. Nf3 {[%emt 0:00:00]} g6 {[%emt 0:00:09]} 3. g3 {[%emt 0:00:00]} Bg7 {[%emt 0:00:25]} 4. Bg2 {[%emt 0:00:00]} Nd7 {[%emt 0:00:58]} 5. O-O {[%emt 0:00:09]} e5 {[%emt 0:00:27]} 6. e4 {[%emt 0:00:39]} Ngf6 {[%emt 0:01:06]} 7. Nc3 {[%emt 0:00:37]} O-O {[%emt 0:00:27]} 8. a4 {[%emt 0:02:24]} c6 {[%emt 0:04:22]} 9. a5 {[%emt 0:00:56]} Rb8 {[%emt 0:01:57]} 10. h3 {[%emt 0:10:53]} b5 {[%emt 0:02:21]} 11. axb6 {[%emt 0:00:08]} axb6 {[%emt 0:00:21]} 12. dxe5 {[%emt 0:07:51]} Nxe5 {[%emt 0:06:19]} 13. Nd4 {[%emt 0:04:19]} b5 {[%emt 0:05:45]} 14. Kh2 {[%emt 0:20:16]} b4 {[%emt 0:02:28]} 15. Na4 {[%emt 0:02:48]} c5 {[%emt 0:05:35]} 16. Nf3 {[%emt 0:01:37]} Nxf3+ {[%emt 0:00:50]} 17. Qxf3 {[%emt 0:03:21]} Bb7 {[%emt 0:01:39]} 18. Bg5 {[%emt 0:01:01]} h6 {[%emt 0:08:15]} 19. Bxf6 {[%emt 0:00:10]} Qxf6 {[%emt 0:00:21]} 20. Qxf6 {[%emt 0:01:13]} Bxf6 {[%emt 0:00:02]} 21. Rad1 {[%emt 0:00:10]} Ba6 {[%emt 0:05:39]} 22. Rfe1 {[%emt 0:05:53]} Bd4 {[%emt 0:02:25]} 23. Bf1 {[%emt 0:06:14]} Bxf1 {[%emt 0:20:55]} 24. Rxf1 {[%emt 0:00:08]} Ra8 {[%emt 0:01:20]} 25. b3 {[%emt 0:01:51]} f5 {[%emt 0:03:17]} 26. exf5 {[%emt 0:10:30]} Rxf5 {[%emt 0:00:33]} 27. f4 {[%emt 0:00:49]} Raf8 {[%emt 0:01:34]} 28. Rf3 {[%emt 0:05:27]} g5 {[%emt 0:02:20]} 29. Rdf1 {[%emt 0:00:44]} Re8 {[%emt 0:01:12]} 30. c3 {[%emt 0:03:51]} bxc3 {[%emt 0:04:44]} 31. Nxc3 {[%emt 0:00:02]} gxf4 {[%emt 0:00:24]} 32. gxf4 {[%emt 0:00:52]} Re3 {[%emt 0:03:02]} 33. Nb5 {[%emt 0:00:53]} Re2+ {[%emt 0:03:06]} 34. Kg3 {[%emt 0:00:09]} Bg7 {[%emt 0:02:13]} 35. Nxd6 {[%emt 0:04:04]} Rf6 {[%emt 0:00:23]} 36. Nc4 {[%emt 0:00:06]} Rg6+ {[%emt 0:00:46]} 37. Kh4 {[%emt 0:00:02]} Kh7 {[%emt 0:00:55]} 38. Ne3 {[%emt 0:00:57]} h5 {[%emt 0:01:45]} 39. Kxh5 {[%emt 0:01:29]} Bd4 {[%emt 0:02:53]} 40. Ng4 {[%emt 0:01:03]} 1-0

[Event "WTCC-65 2018"]
[Site "Radebeul"]
[Date "2018.07.15"]
[Round "9"]
[White "Boidman, Yuri"]
[Black "Vucenovic, Dragomir"]
[Result "1-0"]
[ECO "D10"]
[WhiteElo "2358"]
[BlackElo "2186"]
[Annotator "NA"]
[PlyCount "85"]
[EventDate "2018.07.07"]
[EventType "team-tourn"]
[EventCountry "GER"]
[SourceTitle "playchess.com"]
[Source "ChessBase"]
[SourceQuality "1"]
[TimeControl "40/5400+30:1800+30"]

1. d4 {[%emt 0:00:00]} d5 {[%emt 0:00:00]} 2. c4 {[%emt 0:00:00]} c6 {[%emt 0:00:18]} 3. cxd5 {[%emt 0:00:00]} cxd5 {[%emt 0:00:11]} 4. Nc3 {[%emt 0:00:00]} Nc6 {[%emt 0:01:15]} 5. e4 {[%emt 0:00:13]} e6 {[%emt 0:01:00]} 6. e5 {[%emt 0:00:43]} f5 {[%emt 0:00:15]} 7. a3 {[%emt 0:02:53]} a6 {[%emt 0:01:56]} 8. Nf3 {[%emt 0:01:27]} g6 {[%emt 0:04:57]} 9. h4 {[%emt 0:00:44]} h5 {[%emt 0:03:28]} 10. Ne2 {[%emt 0:01:32]} Bd7 {[%emt 0:06:24]} 11. Nf4 {[%emt 0:00:35]} Nce7 {[%emt 0:14:14]} 12. Qb3 {[%emt 0:06:11]} Nh6 {[%emt 0:12:03]} 13. Ng5 {[%emt 0:03:32]} Qc8 {[%emt 0:04:42]} 14. Bd2 {[%emt 0:14:18]} Rg8 {[%emt 0:07:38]} 15. Rc1 {[%emt 0:02:39]} Nc6 {[%emt 0:00:14]} 16. Be2 {[%emt 0:02:19]} Ng4 {[%emt 0:08:59]} 17. Nxd5 {[%emt 0:15:22]} exd5 {[%emt 0:00:58]} 18. Qxd5 {[%emt 0:00:11]} Rg7 {[%emt 0:01:27]} 19. f3 {[%emt 0:05:55]} Ngxe5 {[%emt 0:03:46]} 20. dxe5 {[%emt 0:00:36]} Re7 {[%emt 0:00:18]} 21. Kf2 {[%emt 0:05:12]} Be6 {[%emt 0:02:41]} 22. Nxe6 {[%emt 0:00:10]} Qxe6 {[%emt 0:00:44]} 23. Qxe6 {[%emt 0:00:29]} Rxe6 {[%emt 0:00:06]} 24. f4 {[%emt 0:00:16]} Rd8 {[%emt 0:03:45]} 25. Be3 {[%emt 0:02:51]} Ne7 {[%emt 0:09:57]} 26. Rhd1 {[%emt 0:05:38]} Rxd1 {[%emt 0:01:29]} 27. Bxd1 {[%emt 0:00:50]} Rc6 {[%emt 0:00:52]} 28. Ba4 {[%emt 0:01:22]} b5 {[%emt 0:00:10]} 29. Rxc6 {[%emt 0:00:54]} Nxc6 {[%emt 0:00:04]} 30. Bb3 {[%emt 0:00:13]} Na5 {[%emt 0:00:53]} 31. Bd5 {[%emt 0:01:46]} Be7 {[%emt 0:04:19]} 32. g3 {[%emt 0:00:33]} Nc4 {[%emt 0:01:51]} 33. Bd4 {[%emt 0:01:00]} Nd2 {[%emt 0:02:07]} 34. Ke2 {[%emt 0:08:06]} Ne4 {[%emt 0:00:08]} 35. Bxe4 {[%emt 0:08:14]} fxe4 {[%emt 0:00:08]} 36. e6 {[%emt 0:00:12]} Bd8 {[%emt 0:01:14]} 37. Bc5 {[%emt 0:00:28]} Bf6 {[%emt 0:00:01]} 38. b3 {[%emt 0:02:55]} Be7 {[%emt 0:02:55]} 39. Bxe7 {[%emt 0:01:22]} Kxe7 {[%emt 0:00:01]} 40. Ke3 {[%emt 0:00:10]} Kxe6 {[%emt 0:00:24]} 41. Kxe4 {[%emt 0:30:07]} a5 {[%emt 0:30:33]} 42. b4 {[%emt 0:01:41]} a4 {[%emt 0:00:00]} 43. Kf3 {[%emt 0:00:00]} 1-0

[Event "WTCC-65 2018"]
[Site "Radebeul"]
[Date "2018.07.15"]
[Round "9"]
[White "Karasev, Vladimir I"]
[Black "Povah, Nigel E"]
[Result "1/2-1/2"]
[ECO "A06"]
[WhiteElo "2337"]
[BlackElo "2245"]
[Annotator "NA"]
[PlyCount "26"]
[EventDate "2018.07.07"]
[EventType "team-tourn"]
[EventCountry "GER"]
[SourceTitle "playchess.com"]
[Source "ChessBase"]
[SourceQuality "1"]
[TimeControl "40/5400+30:1800+30"]

1. Nf3 {[%emt 0:00:00]} d5 {[%emt 0:00:00]} 2. g3 {[%emt 0:00:00]} Bg4 {[%emt 0:00:00]} 3. Bg2 {[%emt 0:00:00]} Nd7 {[%emt 0:00:00]} 4. c4 {[%emt 0:00:16]} e6 {[%emt 0:01:02]} 5. cxd5 {[%emt 0:06:10]} exd5 {[%emt 0:00:06]} 6. Qa4 {[%emt 0:10:55]} Ngf6 {[%emt 0:01:24]} 7. h3 {[%emt 0:04:03]} Bxf3 {[%emt 0:12:40]} 8. Bxf3 {[%emt 0:00:12]} c6 {[%emt 0:00:18]} 9. d3 {[%emt 0:01:36]} Bd6 {[%emt 0:01:40]} 10. Nc3 {[%emt 0:00:45]} Qe7 {[%emt 0:01:30]} 11. O-O {[%emt 0:02:05]} O-O {[%emt 0:06:31]} 12. Bg2 {[%emt 0:01:27]} Rfe8 {[%emt 0:01:02]} 13. Bf4 {[%emt 0:03:59]} Nc5 {[%emt 0:07:44]} 1/2-1/2

[Event "WTCC-65 2018"]
[Site "Radebeul"]
[Date "2018.07.15"]
[Round "9"]
[White "Buchal, Stephan"]
[Black "Bosbach, Gerhard"]
[Result "1-0"]
[ECO "A15"]
[WhiteElo "2329"]
[BlackElo "2119"]
[Annotator "NA"]
[PlyCount "97"]
[EventDate "2018.07.07"]
[EventType "team-tourn"]
[EventCountry "GER"]
[SourceTitle "playchess.com"]
[Source "ChessBase"]
[SourceQuality "1"]
[TimeControl "40/5400+30:1800+30"]

1. c4 {[%emt 0:00:00]} Nf6 {[%emt 0:00:00]} 2. g3 {[%emt 0:00:00]} c6 {[%emt 0:00:25]} 3. Nf3 {[%emt 0:00:09]} d5 {[%emt 0:00:42]} 4. Bg2 {[%emt 0:00:16]} g6 {[%emt 0:00:53]} 5. b3 {[%emt 0:00:33]} Bg7 {[%emt 0:00:27]} 6. Bb2 {[%emt 0:00:11]} O-O {[%emt 0:00:21]} 7. O-O {[%emt 0:00:15]} Re8 {[%emt 0:04:41]} 8. Qc2 {[%emt 0:04:02]} Nbd7 {[%emt 0:11:25]} 9. Nc3 {[%emt 0:04:22]} Nb6 {[%emt 0:04:49] A11: Reti-Eröffnung} (9... dxc4 10. bxc4 e5 11. d3 Nc5 12. Rfd1 Qc7 13. Rab1 Bf5 14. Nh4 Be6 15. Ba3 Bf8 16. Na4 Nfd7 17. Nc3 {1-0 (57) Mamedov,R (2639)-Mekhitarian,K (2589) Arlington 2015}) 10. d3 {[%emt 0:06:20]} e5 {[%emt 0:05:07]} 11. cxd5 {[%emt 0:03:57]} Nfxd5 {[%emt 0:11:57]} 12. Ne4 {[%emt 0:06:59]} f5 $146 {[%emt 0:04:49]} ({Vorgänger:} 12... Bg4 13. h3 Bxf3 14. Bxf3 Qe7 15. a3 Nc7 16. Nc5 Ne6 17. Nxe6 Qxe6 {½-½ (31) Gullotto,V (2289)-Van de Haak,G (2222) ICCF email 2011}) 13. Nc5 {[%emt 0:11:32]} Nb4 {[%emt 0:28:52]} 14. Qd2 {[%emt 0:07:07]} a5 {[%emt 0:01:39]} 15. a3 {[%emt 0:01:43]} Na6 {[%emt 0:03:17]} 16. Nxa6 {[%emt 0:11:06]} Rxa6 {[%emt 0:00:21]} 17. Qc2 {[%emt 0:02:12]} Qe7 {[%emt 0:06:24]} 18. e4 {[%emt 0:09:26]} fxe4 {[%emt 0:02:56]} 19. dxe4 {[%emt 0:00:03]} Bg4 {[%emt 0:00:11]} 20. h3 {[%emt 0:02:52]} Bc8 {[%emt 0:01:07]} 21. a4 {[%emt 0:04:43]} Qf6 {[%emt 0:04:59]} 22. Kh2 {[%emt 0:05:36]} Bf8 {[%emt 0:01:40]} 23. Bc3 {[%emt 0:06:49]} Bb4 {[%emt 0:00:54]} 24. Bxb4 {[%emt 0:00:46]} axb4 {[%emt 0:00:01]} 25. a5 {[%emt 0:00:16]} Nd7 {[%emt 0:00:30]} 26. Qc4+ {[%emt 0:00:17]} Kg7 {[%emt 0:00:46]} 27. Qxb4 {[%emt 0:00:05]} Nf8 {[%emt 0:00:15]} 28. Qc3 {[%emt 0:03:23]} b6 {[%emt 0:01:37]} 29. b4 {[%emt 0:00:58]} Nd7 {[%emt 0:00:45]} 30. Rfc1 {[%emt 0:04:13]} bxa5 {[%emt 0:00:23]} 31. bxa5 {[%emt 0:00:28]} c5 {[%emt 0:00:12]} 32. Qe3 {[%emt 0:01:44]} Rc6 {[%emt 0:00:16]} 33. Nd2 {[%emt 0:01:02]} Ba6 {[%emt 0:00:09]} 34. Rc3 {[%emt 0:00:51]} c4 {[%emt 0:00:33]} 35. Bf1 {[%emt 0:01:06]} Rec8 {[%emt 0:00:10]} 36. Be2 {[%emt 0:01:01]} h5 {[%emt 0:00:10]} 37. f4 {[%emt 0:00:47]} Qd6 {[%emt 0:00:39]} 38. Nf3 {[%emt 0:00:24]} Qc5 {[%emt 0:01:02]} 39. Rd1 {[%emt 0:00:25]} R8c7 {[%emt 0:00:27]} 40. fxe5 {[%emt 0:00:38]} Nxe5 {[%emt 0:00:27]} 41. Nxe5 {[%emt 0:01:50]} Qxe5 {[%emt 0:00:26]} 42. Rd5 {[%emt 0:00:56]} Qf6 {[%emt 0:09:25]} 43. e5 {[%emt 0:02:54]} Qf5 {[%emt 0:00:33]} 44. Qd4 {[%emt 0:01:20]} Bc8 {[%emt 0:02:58]} 45. g4 {[%emt 0:06:26]} Qg5 {[%emt 0:04:09]} 46. gxh5 {[%emt 0:02:16]} Bf5 {[%emt 0:05:24]} 47. Rg3 {[%emt 0:05:29]} Qe7 {[%emt 0:02:23]} 48. e6+ {[%emt 0:03:11]} Qf6 {[%emt 0:00:14]} 49. h6+ {[%emt 0:00:17]} 1-0

[Event "WTCC-65 2018"]
[Site "Radebeul"]
[Date "2018.07.15"]
[Round "9"]
[White "Rooze, Jan"]
[Black "Renman, Nils-Gustaf"]
[Result "1/2-1/2"]
[ECO "A06"]
[WhiteElo "2314"]
[BlackElo "2343"]
[Annotator "NA"]
[PlyCount "31"]
[EventDate "2018.07.07"]
[EventType "team-tourn"]
[EventCountry "GER"]
[SourceTitle "playchess.com"]
[Source "ChessBase"]
[SourceQuality "1"]
[TimeControl "40/5400+30:1800+30"]

1. Nf3 {[%emt 0:00:00]} d5 {[%emt 0:00:22]} 2. e3 {[%emt 0:00:00]} Nf6 {[%emt 0:00:31]} 3. c4 {[%emt 0:00:13]} e6 {[%emt 0:04:05]} 4. b3 {[%emt 0:02:09]} Be7 {[%emt 0:02:36]} 5. Bb2 {[%emt 0:00:40]} O-O {[%emt 0:00:08]} 6. Nc3 {[%emt 0:02:47]} c5 {[%emt 0:05:31]} 7. cxd5 {[%emt 0:07:20]} exd5 {[%emt 0:03:01]} 8. d4 {[%emt 0:02:55]} Nc6 {[%emt 0:01:25]} 9. Be2 {[%emt 0:01:39]} Ne4 {[%emt 0:22:28]} 10. O-O {[%emt 0:04:41]} Bf6 {[%emt 0:01:15]} 11. Na4 {[%emt 0:04:21]} Bg4 {[%emt 0:06:19]} 12. Rc1 {[%emt 0:01:57]} cxd4 {[%emt 0:04:52]} 13. Nxd4 {[%emt 0:04:21]} Bxe2 {[%emt 0:02:19]} 14. Nxe2 {[%emt 0:00:46]} Bxb2 {[%emt 0:00:11]} 15. Nxb2 {[%emt 0:00:12]} Qf6 {[%emt 0:00:11]} 16. Na4 1/2-1/2

[Event "WTCC-65 2018"]
[Site "Radebeul"]
[Date "2018.07.15"]
[Round "9"]
[White "Faibisovich, Vadim Z"]
[Black "Bellin, Robert"]
[Result "1/2-1/2"]
[ECO "C46"]
[WhiteElo "2312"]
[BlackElo "2333"]
[Annotator "NA"]
[PlyCount "40"]
[EventDate "2018.07.07"]
[EventType "team-tourn"]
[EventCountry "GER"]
[SourceTitle "playchess.com"]
[Source "ChessBase"]
[SourceQuality "1"]
[TimeControl "40/5400+30:1800+30"]

1. e4 {[%emt 0:00:00]} e5 {[%emt 0:01:55]} 2. Nf3 {[%emt 0:00:29]} Nc6 {[%emt 0:00:14]} 3. Nc3 {[%emt 0:02:22]} a6 {[%emt 0:05:29]} 4. d4 {[%emt 0:02:15]} exd4 {[%emt 0:04:15]} 5. Nxd4 {[%emt 0:00:44]} Qf6 {[%emt 0:10:39]} 6. Nxc6 {[%emt 0:06:08]} dxc6 {[%emt 0:05:18]} 7. Qf3 {[%emt 0:03:57]} Qxf3 {[%emt 0:03:12]} 8. gxf3 {[%emt 0:00:10]} Bd7 {[%emt 0:03:35]} 9. Be3 {[%emt 0:03:04]} Nf6 {[%emt 0:09:39]} 10. O-O-O {[%emt 0:02:54]} Be7 {[%emt 0:05:18]} 11. Rg1 {[%emt 0:04:31]} g6 {[%emt 0:07:50]} 12. Be2 {[%emt 0:01:22]} O-O-O {[%emt 0:01:34]} 13. f4 {[%emt 0:01:37]} Be6 {[%emt 0:02:14]} 14. Bf3 {[%emt 0:04:27]} Rxd1+ {[%emt 0:00:57]} 15. Kxd1 {[%emt 0:04:09]} Rd8+ {[%emt 0:00:09]} 16. Kc1 {[%emt 0:00:40]} h5 {[%emt 0:01:21]} 17. Rd1 {[%emt 0:08:25]} Ng4 {[%emt 0:04:19]} 18. Rxd8+ {[%emt 0:00:26]} Kxd8 {[%emt 0:00:06]} 19. Bxg4 {[%emt 0:00:28]} Bxg4 {[%emt 0:01:01]} 20. Kd2 {[%emt 0:03:20]} Bb4 {[%emt 0:02:19]} 1/2-1/2

[Event "WTCC-65 2018"]
[Site "Radebeul"]
[Date "2018.07.15"]
[Round "9"]
[White "Pushkov, Nikolai"]
[Black "Bernard, Christophe"]
[Result "1/2-1/2"]
[ECO "A05"]
[WhiteElo "2311"]
[BlackElo "2253"]
[Annotator "NA"]
[PlyCount "68"]
[EventDate "2018.07.07"]
[EventType "team-tourn"]
[EventCountry "GER"]
[SourceTitle "playchess.com"]
[Source "ChessBase"]
[SourceQuality "1"]
[TimeControl "40/5400+30:1800+30"]

1. Nf3 {[%emt 0:00:00]} Nf6 {[%emt 0:00:00]} 2. c4 {[%emt 0:00:00]} g6 {[%emt 0:00:00]} 3. Nc3 {[%emt 0:00:00]} c5 {[%emt 0:00:07]} 4. e4 {[%emt 0:00:15]} Nc6 {[%emt 0:00:17]} 5. d4 {[%emt 0:00:11]} cxd4 {[%emt 0:00:07]} 6. Nxd4 {[%emt 0:00:02]} d6 {[%emt 0:00:20]} 7. Be2 {[%emt 0:00:23]} Bg7 {[%emt 0:00:02]} 8. Be3 {[%emt 0:00:12]} O-O {[%emt 0:00:20]} 9. O-O {[%emt 0:00:33]} Bd7 {[%emt 0:00:46]} 10. Qd2 {[%emt 0:01:22]} Nxd4 {[%emt 0:01:05]} 11. Bxd4 {[%emt 0:00:02]} Bc6 {[%emt 0:00:11]} 12. f3 {[%emt 0:00:06]} Nd7 {[%emt 0:01:11]} 13. Be3 {[%emt 0:02:44]} a5 {[%emt 0:03:49]} 14. b3 {[%emt 0:00:34]} Nc5 {[%emt 0:00:58]} 15. Rab1 {[%emt 0:02:43]} Qb6 {[%emt 0:00:49]} 16. Rfc1 {[%emt 0:01:08]} Rfc8 {[%emt 0:05:50]} 17. Rc2 {[%emt 0:01:31]} Qd8 {[%emt 0:01:49]} 18. Bd4 {[%emt 0:04:53]} Qf8 {[%emt 0:13:31]} 19. Bxg7 {[%emt 0:00:53]} Qxg7 {[%emt 0:10:14]} 20. Rd1 {[%emt 0:02:18]} Rf8 {[%emt 0:02:19]} 21. Qd4 {[%emt 0:04:50]} Qxd4+ {[%emt 0:00:58]} 22. Rxd4 {[%emt 0:00:02]} Rfd8 {[%emt 0:01:34]} 23. Rd1 {[%emt 0:01:09]} Rab8 {[%emt 0:04:25]} 24. Rcd2 {[%emt 0:00:32]} Rf8 {[%emt 0:00:02]} 25. Re1 {[%emt 0:06:43]} Rfd8 {[%emt 0:09:41]} 26. Bf1 {[%emt 0:04:21]} Kf8 {[%emt 0:00:17]} 27. Kf2 {[%emt 0:02:12]} Ne6 {[%emt 0:01:49]} 28. g3 {[%emt 0:02:56]} Ke8 {[%emt 0:00:20]} 29. f4 {[%emt 0:09:22]} Nc5 {[%emt 0:02:51]} 30. Bg2 {[%emt 0:06:34]} e6 {[%emt 0:03:49]} 31. Nd5 {[%emt 0:04:53]} b5 {[%emt 0:06:05]} 32. cxb5 {[%emt 0:04:11]} Bxb5 {[%emt 0:01:29]} 33. Nc7+ {[%emt 0:00:22]} Ke7 {[%emt 0:00:20]} 34. Nxb5 {[%emt 0:00:23]} Rxb5 {[%emt 0:00:04]} 1/2-1/2

[Event "WTCC-65 2018"]
[Site "Radebeul"]
[Date "2018.07.15"]
[Round "9"]
[White "Berry, Stephen H"]
[Black "Mishuchkov, Nikolai M"]
[Result "1/2-1/2"]
[ECO "A13"]
[WhiteElo "2298"]
[BlackElo "2311"]
[Annotator "NA"]
[PlyCount "33"]
[EventDate "2018.07.07"]
[EventType "team-tourn"]
[EventCountry "GER"]
[SourceTitle "playchess.com"]
[Source "ChessBase"]
[SourceQuality "1"]
[TimeControl "40/5400+30:1800+30"]

1. c4 {[%emt 0:00:00]} e6 {[%emt 0:00:00]} 2. g3 {[%emt 0:00:00]} Nf6 {[%emt 0:00:03]} 3. Bg2 {[%emt 0:00:08]} d5 {[%emt 0:00:09]} 4. Nf3 {[%emt 0:00:11]} dxc4 {[%emt 0:01:02]} 5. Qa4+ {[%emt 0:00:14]} Bd7 {[%emt 0:00:18]} 6. Qxc4 {[%emt 0:00:14]} c5 {[%emt 0:00:05]} 7. O-O {[%emt 0:02:42]} Nc6 {[%emt 0:00:22]} 8. d3 {[%emt 0:05:25]} Rc8 {[%emt 0:01:52]} 9. Qb3 {[%emt 0:07:16]} b6 {[%emt 0:03:12]} 10. Nc3 {[%emt 0:02:44]} Be7 {[%emt 0:00:33]} 11. Bf4 {[%emt 0:01:30]} O-O {[%emt 0:00:34]} 12. Rac1 {[%emt 0:02:58]} Na5 {[%emt 0:10:39]} 13. Qd1 {[%emt 0:02:40]} Bc6 {[%emt 0:00:27]} 14. b3 {[%emt 0:08:32]} Ba8 {[%emt 0:02:07]} 15. e4 {[%emt 0:04:08]} h6 {[%emt 0:04:48]} 16. Qe2 {[%emt 0:02:09]} Nc6 {[%emt 0:00:28]} 17. Rfd1 {[%emt 0:02:30]} 1/2-1/2

[Event "WTCC-65 2018"]
[Site "Radebeul"]
[Date "2018.07.15"]
[Round "9"]
[White "Baum, Bernd"]
[Black "Vogt, Lothar"]
[Result "1/2-1/2"]
[ECO "A49"]
[WhiteElo "2280"]
[BlackElo "2376"]
[Annotator "NA"]
[PlyCount "34"]
[EventDate "2018.07.07"]
[EventType "team-tourn"]
[EventCountry "GER"]
[SourceTitle "playchess.com"]
[Source "ChessBase"]
[SourceQuality "1"]
[TimeControl "40/5400+30:1800+30"]

1. d4 {[%emt 0:00:00]} Nf6 {[%emt 0:00:00]} 2. Nf3 {[%emt 0:00:00]} g6 {[%emt 0:00:00]} 3. g3 {[%emt 0:00:00]} Bg7 {[%emt 0:00:00]} 4. Bg2 {[%emt 0:00:00]} O-O {[%emt 0:00:03]} 5. O-O {[%emt 0:00:00]} d6 {[%emt 0:00:11]} 6. Re1 {[%emt 0:00:00]} Nc6 {[%emt 0:05:06]} 7. d5 {[%emt 0:01:38]} Nb4 {[%emt 0:00:17]} 8. e4 {[%emt 0:01:36]} e6 {[%emt 0:04:13]} 9. a3 {[%emt 0:03:11]} Na6 {[%emt 0:00:03]} 10. dxe6 {[%emt 0:00:49]} Bxe6 {[%emt 0:00:23]} 11. h3 {[%emt 0:03:12]} Nc5 {[%emt 0:04:37]} 12. Nd4 {[%emt 0:00:38]} Bd7 {[%emt 0:00:50]} 13. Nc3 {[%emt 0:00:14]} Re8 {[%emt 0:00:49]} 14. Bf4 {[%emt 0:04:30]} Nh5 {[%emt 0:01:57]} 15. Be3 {[%emt 0:00:30]} Nf6 {[%emt 0:00:13]} 16. Bf4 {[%emt 0:00:14]} Nh5 {[%emt 0:00:08]} 17. Be3 {[%emt 0:00:03]} Nf6 1/2-1/2

[Event "WTCC-65 2018"]
[Site "Radebeul"]
[Date "2018.07.15"]
[Round "9"]
[White "Huss, Andreas"]
[Black "Rotstein, Jefim"]
[Result "0-1"]
[ECO "A80"]
[WhiteElo "2276"]
[BlackElo "2318"]
[Annotator "NA"]
[PlyCount "30"]
[EventDate "2018.07.07"]
[EventType "team-tourn"]
[EventCountry "GER"]
[SourceTitle "playchess.com"]
[Source "ChessBase"]
[SourceQuality "1"]
[TimeControl "40/5400+30:1800+30"]

1. d4 {[%emt 0:00:00]} f5 {[%emt 0:00:00]} 2. Nc3 {[%emt 0:00:00]} d5 {[%emt 0:00:32]} 3. Bg5 {[%emt 0:00:28]} c6 {[%emt 0:00:45]} 4. e3 {[%emt 0:02:40]} Qb6 {[%emt 0:00:35]} 5. Na4 {[%emt 0:05:24]} Qa5+ {[%emt 0:01:31]} 6. c3 {[%emt 0:01:05]} e5 {[%emt 0:04:14]} 7. b4 {[%emt 0:01:45]} Bxb4 {[%emt 0:04:26]} 8. cxb4 {[%emt 0:00:28]} Qxb4+ {[%emt 0:00:10]} 9. Ke2 {[%emt 0:00:11]} h6 {[%emt 0:04:09]} 10. Bh4 {[%emt 0:08:59]} g5 {[%emt 0:00:40]} 11. f4 {[%emt 0:07:09]} exf4 {[%emt 0:14:12]} 12. Bf2 {[%emt 0:13:41]} b6 {[%emt 0:04:43]} 13. exf4 {[%emt 0:12:38]} Ba6+ {[%emt 0:00:51]} 14. Kf3 {[%emt 0:00:23]} g4+ {[%emt 0:01:24]} 15. Kg3 {[%emt 0:00:45]} Nf6 {[%emt 0:02:11]} 0-1